bitfinex/quotes_BTCUSD_20240811
["timestamp","ask_amount","ask_price","bid_price","bid_amount"]
[1723365202212,1.28358176,61272.0,61271.0,0.1446152]
[1723365202388,1.23486129,61272.0,61271.0,0.1446152]
[1723365203317,1.307942,61272.0,61271.0,0.1446152]
[1723365205345,1.33244767,61272.0,61271.0,0.1446152]
[1723365206361,1.23486129,61272.0,61271.0,0.1446152]
[1723365206491,1.16666129,61272.0,61271.0,0.1446152]
[1723365206690,1.3324775,61272.0,61271.0,0.1446152]
[1723365207200,1.35684427,61272.0,61271.0,0.1446152]
[1723365208207,1.23486129,61272.0,61271.0,0.1446152]
[1723365208610,1.23540653,61272.0,61271.0,0.1446152]
[1723365209772,0.816045,61271.0,61270.0,0.009152]
[1723365209976,1.22734521,61271.0,61270.0,0.009152]
[1723365210298,1.22734522,61271.0,61270.0,0.009152]
[1723365210575,0.6394078,61271.0,61270.0,0.009152]
[1723365210776,0.9658258,61271.0,61270.0,0.009152]
[1723365211054,0.9778258,61271.0,61270.0,0.009152]
[1723365211565,0.9918258,61271.0,61270.0,0.009152]
[1723365212098,0.942045,61271.0,61270.0,0.009152]
[1723365212318,0.99247793,61271.0,61270.0,0.009152]
[1723365212703,0.99247793,61271.0,61270.0,0.154352]
[1723365214032,1.06576499,61271.0,61270.0,0.154352]
[1723365214588,0.942045,61271.0,61270.0,0.154352]
[1723365214747,1.01533379,61271.0,61270.0,0.154352]
[1723365215213,0.942045,61271.0,61270.0,0.154352]
[1723365217635,1.01534855,61271.0,61270.0,0.154352]
[1723365218191,0.942045,61271.0,61270.0,0.154352]
[1723365218596,0.09930887,61271.0,61270.0,0.17397]
[1723365218798,0.026,61271.0,61270.0,0.17397]
[1723365219022,0.026,61271.0,61270.0,0.337182]
[1723365219233,0.026,61271.0,61270.0,0.47274404]
[1723365219401,0.026,61271.0,61270.0,0.337182]
[1723365219602,0.014,61271.0,61270.0,0.337182]
[1723365219806,0.014,61271.0,61270.0,0.47274401]
[1723365220014,0.018,61271.0,61270.0,0.30953201]
[1723365220394,0.000832,61272.0,61271.0,0.019618]
[1723365220598,0.000832,61272.0,61271.0,0.162118]
[1723365220799,0.000832,61272.0,61271.0,0.16538185]
[1723365221215,0.000832,61272.0,61271.0,0.325327]
[1723365221469,0.000832,61272.0,61271.0,0.978163]
[1723365221656,0.000832,61272.0,61271.0,1.11371828]
[1723365222013,0.004832,61272.0,61271.0,1.11371828]
[1723365223023,0.004832,61272.0,61271.0,0.978163]
[1723365223230,0.006832,61272.0,61271.0,1.11371064]
[1723365223867,0.006832,61272.0,61271.0,1.10371064]
[1723365224088,0.006832,61272.0,61271.0,1.11371064]
[1723365224295,0.006832,61272.0,61271.0,1.10371064]
[1723365226551,0.006832,61272.0,61271.0,0.978163]
[1723365226755,0.006832,61272.0,61271.0,1.11370937]
[1723365231032,0.006832,61272.0,61271.0,1.10370937]
[1723365231440,0.006832,61272.0,61271.0,0.968163]
[1723365231851,0.006832,61272.0,61271.0,1.10370936]
[1723365232009,0.006832,61272.0,61271.0,1.26752428]
[1723365232211,0.006832,61272.0,61271.0,1.59394228]
[1723365232410,0.006832,61272.0,61271.0,1.60394228]
[1723365232621,0.006832,61272.0,61271.0,1.59394228]
[1723365234089,0.006832,61272.0,61271.0,1.72946762]
[1723365234699,0.006832,61272.0,61271.0,1.73946762]
[1723365236487,0.006832,61272.0,61271.0,1.72946762]
[1723365236691,0.006832,61272.0,61271.0,1.73946762]
[1723365237091,0.006832,61272.0,61271.0,1.72946762]
[1723365237290,0.006832,61272.0,61271.0,1.73946762]
[1723365237500,0.006832,61272.0,61271.0,1.72946762]
[1723365238151,0.006832,61272.0,61271.0,1.72946569]
[1723365238304,0.006832,61272.0,61271.0,1.73038089]
[1723365238801,0.006832,61272.0,61271.0,1.75038089]
[1723365239005,0.006832,61272.0,61271.0,2.07679889]
[1723365239304,0.006832,61272.0,61271.0,2.05679889]
[1723365239647,0.006832,61272.0,61271.0,2.0567962]
[1723365240046,0.004832,61272.0,61271.0,2.0567962]
[1723365240432,0.005832,61272.0,61271.0,2.0777962]
[1723365240633,0.005832,61272.0,61271.0,2.1207962]
[1723365240833,0.005832,61272.0,61271.0,1.98526497]
[1723365241037,0.005832,61272.0,61271.0,2.1207951]
[1723365241265,0.001832,61272.0,61271.0,2.1227951]
[1723365241616,0.002832,61272.0,61271.0,2.1227951]
[1723365242146,0.002832,61272.0,61271.0,2.2227951]
[1723365242551,0.002832,61272.0,61271.0,2.29055502]
[1723365243427,0.002832,61272.0,61271.0,2.15501917]
[1723365244871,0.002832,61272.0,61271.0,2.32441277]
[1723365245234,0.001832,61272.0,61271.0,2.32341277]
[1723365245523,0.001832,61272.0,61271.0,2.64983077]
[1723365245524,0.000832,61272.0,61271.0,2.64983077]
[1723365245965,0.001832,61272.0,61271.0,2.64983077]
[1723365246172,0.001832,61272.0,61271.0,2.65083077]
[1723365246393,0.002832,61272.0,61271.0,2.61883077]
[1723365246593,0.001832,61272.0,61271.0,2.80086958]
[1723365246999,0.002832,61272.0,61271.0,2.80186958]
[1723365247381,0.002832,61272.0,61271.0,4.09546958]
[1723365247812,0.002832,61272.0,61271.0,4.06346958]
[1723365248303,0.002832,61272.0,61271.0,4.06412998]
[1723365248534,0.002832,61272.0,61271.0,3.76771198]
[1723365248738,0.002832,61272.0,61271.0,4.09412998]
[1723365248989,0.002832,61272.0,61271.0,4.06412998]
[1723365249169,0.002832,61272.0,61271.0,4.09612998]
[1723365249373,0.002832,61272.0,61271.0,3.50774712]
[1723365249523,0.002832,61272.0,61271.0,4.09599544]
[1723365249920,0.002832,61272.0,61271.0,3.76757744]
[1723365250211,0.002832,61272.0,61271.0,3.75757744]
[1723365250416,0.002832,61272.0,61271.0,3.76757744]
[1723365250773,0.002832,61272.0,61271.0,4.33457744]
[1723365250934,0.002832,61272.0,61271.0,3.1187696]
[1723365251132,0.002832,61272.0,61271.0,3.39743698]
[1723365251584,0.001832,61272.0,61271.0,3.39743698]
[1723365251787,0.001832,61272.0,61271.0,3.38743698]
[1723365251986,0.001832,61272.0,61271.0,3.39643698]
[1723365252186,0.001832,61272.0,61271.0,3.39743698]
[1723365252574,0.002832,61272.0,61271.0,3.39743698]
[1723365252775,0.001832,61272.0,61271.0,3.39643698]
[1723365252978,0.001832,61272.0,61271.0,3.39743698]
[1723365253257,0.002832,61272.0,61271.0,2.13583698]
[1723365253482,0.002832,61272.0,61271.0,1.60583698]
[1723365253664,0.002832,61272.0,61271.0,1.59583698]
[1723365254007,0.002832,61272.0,61271.0,1.60583698]
[1723365254510,0.000832,61272.0,61271.0,1.59483698]
[1723365254749,0.001832,61272.0,61271.0,1.60484446]
[1723365254945,0.002832,61272.0,61271.0,1.60584446]
[1723365255142,0.001832,61272.0,61271.0,1.60584446]
[1723365255311,0.001832,61272.0,61271.0,1.59484446]
[1723365255675,0.000832,61272.0,61271.0,1.59584446]
[1723365255875,0.001832,61272.0,61271.0,1.59584446]
[1723365255999,0.002832,61272.0,61271.0,1.60584446]
[1723365256202,0.002832,61272.0,61271.0,1.60484446]
[1723365256203,0.001832,61272.0,61271.0,1.60484446]
[1723365256500,0.001832,61272.0,61271.0,1.60584446]
[1723365258017,0.002832,61272.0,61271.0,1.60584446]
[1723365258426,0.002832,61272.0,61271.0,1.47031112]
[1723365258599,0.002832,61272.0,61271.0,1.60584581]
[1723365259016,0.002832,61272.0,61271.0,1.60584536]
[1723365259436,0.002832,61272.0,61271.0,1.68404536]
[1723365259634,0.002832,61272.0,61271.0,2.12122852]
[1723365260042,0.002832,61272.0,61271.0,2.10122852]
[1723365260444,0.002832,61272.0,61271.0,2.12122852]
[1723365261046,0.002832,61272.0,61271.0,2.73122852]
[1723365261250,0.002832,61272.0,61271.0,2.68122852]
[1723365261486,0.002832,61272.0,61271.0,2.86443872]
[1723365261687,0.002832,61272.0,61271.0,2.77623872]
[1723365262045,0.000832,61278.0,61277.0,1.814741]
[1723365262245,0.000832,61306.0,61305.0,0.508973]
[1723365262461,0.000832,61306.0,61305.0,1.32526192]
[1723365262683,0.000832,61306.0,61305.0,1.46074093]
[1723365263454,0.000832,61306.0,61305.0,1.45074093]
[1723365263798,0.000832,61306.0,61305.0,1.46074093]
[1723365264876,0.000832,61306.0,61305.0,1.46474093]
[1723365265305,0.000832,61306.0,61305.0,1.47174093]
[1723365265306,0.001832,61306.0,61305.0,1.47174093]
[1723365265478,0.002832,61306.0,61305.0,1.34626192]
[1723365265846,0.000832,61306.0,61305.0,1.32526192]
[1723365266186,0.002832,61306.0,61305.0,1.34626192]
[1723365266388,0.001832,61306.0,61305.0,1.33626192]
[1723365267221,0.000832,61306.0,61305.0,1.32526192]
[1723365268247,0.001832,61306.0,61305.0,1.33526192]
[1723365268435,0.001832,61306.0,61305.0,1.34526192]
[1723365268687,0.000832,61306.0,61305.0,1.32526192]
[1723365269027,0.001832,61306.0,61305.0,1.32426192]
[1723365269381,0.001832,61306.0,61305.0,1.33426192]
[1723365269595,0.001832,61306.0,61305.0,1.34426192]
[1723365269895,0.001832,61306.0,61305.0,1.33426192]
[1723365270510,0.001832,61306.0,61305.0,1.34426192]
[1723365270702,0.001832,61306.0,61305.0,1.33426192]
[1723365270905,0.001832,61306.0,61305.0,1.34426192]
[1723365276852,0.001832,61306.0,61305.0,1.33426192]
[1723365277206,0.001832,61306.0,61305.0,1.34426192]
[1723365277337,0.001832,61306.0,61305.0,1.33426192]
[1723365277705,0.001832,61306.0,61305.0,1.34426192]
[1723365278145,0.001832,61306.0,61305.0,1.33426192]
[1723365280220,0.001832,61306.0,61305.0,1.41116192]
[1723365281958,0.001832,61306.0,61305.0,1.42116192]
[1723365282159,0.001832,61306.0,61305.0,1.41116192]
[1723365282362,0.001832,61306.0,61305.0,1.42116192]
[1723365282695,0.001832,61306.0,61305.0,1.34426192]
[1723365282915,0.000832,61306.0,61305.0,1.32526192]
[1723365283072,0.001832,61306.0,61305.0,1.33326192]
[1723365283274,0.002832,61306.0,61305.0,1.34226192]
[1723365283477,0.001832,61306.0,61305.0,1.32426192]
[1723365283687,0.001832,61306.0,61305.0,1.33426192]
[1723365284513,0.000832,61306.0,61305.0,1.32526192]
[1723365285336,0.001832,61306.0,61305.0,1.33326192]
[1723365285747,0.000832,61306.0,61305.0,1.32826192]
[1723365285899,0.000832,61306.0,61305.0,1.32726192]
[1723365286103,0.000832,61306.0,61305.0,1.33126192]
[1723365287344,0.000832,61306.0,61305.0,1.00502492]
[1723365287804,0.000832,61306.0,61305.0,1.00102492]
[1723365288348,0.000832,61306.0,61305.0,0.99902492]
[1723365288706,0.002832,61306.0,61305.0,1.13449349]
[1723365288907,0.002832,61306.0,61305.0,1.13549349]
[1723365288908,0.008832,61306.0,61305.0,1.13549349]
[1723365289340,0.011832,61306.0,61305.0,1.00002492]
[1723365289520,0.000832,61306.0,61305.0,1.1344935]
[1723365289904,0.009832,61306.0,61305.0,1.1354935]
[1723365290998,0.015832,61306.0,61305.0,1.1364935]
[1723365291439,0.006832,61306.0,61305.0,1.1344935]
[1723365291641,0.000832,61306.0,61305.0,1.1344935]
[1723365291862,0.012832,61306.0,61305.0,1.13526119]
[1723365292065,0.012832,61306.0,61305.0,0.97044627]
[1723365292066,0.005832,61306.0,61305.0,0.97044627]
[1723365292432,0.002832,61306.0,61305.0,0.97044627]
[1723365293139,0.002832,61306.0,61305.0,0.97044946]
[1723365296792,0.002832,61306.0,61305.0,0.97045013]
[1723365297401,0.002832,61306.0,61305.0,0.97045019]
[1723365299375,0.002832,61306.0,61305.0,0.14485819]
[1723365299376,0.143332,61306.0,61305.0,0.14485819]
[1723365299577,0.23484692,61306.0,61298.0,0.00938569]
[1723365299716,0.698103,61299.0,61298.0,0.00938569]
[1723365299920,0.75200608,61299.0,61298.0,0.00938569]
[1723365300120,0.371834,61299.0,61298.0,0.00938569]
[1723365300323,0.2087,61299.0,61296.0,0.00938569]
[1723365300522,0.1405,61296.0,61295.0,0.01938569]
[1723365300721,0.2087,61296.0,61295.0,0.26437715]
[1723365300938,0.1405,61296.0,61295.0,0.43145479]
[1723365301146,0.002832,61306.0,61305.0,0.18250369]
[1723365301394,0.000832,61306.0,61305.0,0.51200238]
[1723365301704,0.014832,61306.0,61305.0,1.46477715]
[1723365302503,0.000832,61306.0,61305.0,1.46377715]
[1723365302949,0.013832,61306.0,61305.0,1.4647633]
[1723365303151,0.000832,61306.0,61305.0,1.4637633]
[1723365303404,0.013832,61306.0,61305.0,1.4647633]
[1723365303763,0.000832,61306.0,61305.0,1.4537633]
[1723365303965,0.000832,61306.0,61305.0,1.5413633]
[1723365304141,0.002832,61306.0,61305.0,1.5413633]
[1723365304342,0.002832,61306.0,61305.0,1.58012369]
[1723365304703,0.006832,61306.0,61305.0,1.78027386]
[1723365305100,0.006832,61306.0,61305.0,1.79027386]
[1723365305411,0.006832,61306.0,61305.0,2.27175136]
[1723365305629,0.006832,61306.0,61305.0,2.50092845]
[1723365305836,0.002832,61306.0,61305.0,2.50292845]
[1723365306035,0.002832,61306.0,61305.0,3.08292845]
[1723365306245,0.002832,61306.0,61305.0,3.11392845]
[1723365306463,0.002832,61306.0,61305.0,3.18365453]
[1723365306902,0.000832,61306.0,61305.0,2.5102283]
[1723365307102,0.000832,61306.0,61305.0,3.13565131]
[1723365307499,0.000832,61306.0,61305.0,3.34725067]
[1723365307702,0.000832,61306.0,61305.0,3.45430651]
[1723365307905,0.000832,61306.0,61305.0,3.11565131]
[1723365308032,0.000832,61306.0,61305.0,3.13565131]
[1723365308236,0.000832,61306.0,61305.0,3.13864869]
[1723365308437,0.001832,61306.0,61305.0,3.13864869]
[1723365308662,0.001832,61306.0,61305.0,3.15037737]
[1723365309074,0.002832,61306.0,61305.0,3.15837737]
[1723365309587,0.002832,61306.0,61305.0,3.12837737]
[1723365309798,0.002832,61306.0,61305.0,3.15837737]
[1723365309989,0.001832,61306.0,61305.0,2.56495698]
[1723365310204,0.001832,61306.0,61305.0,3.1176816]
[1723365310415,0.002832,61306.0,61305.0,3.1616816]
[1723365311399,0.002832,61306.0,61305.0,3.1416816]
[1723365311578,0.002832,61306.0,61305.0,3.1616816]
[1723365312600,0.002832,61306.0,61305.0,3.1325957]
[1723365312775,0.002832,61306.0,61305.0,3.1625957]
[1723365313526,0.002832,61306.0,61305.0,3.1325957]
[1723365313696,0.002832,61306.0,61305.0,3.13267301]
[1723365314305,0.002832,61306.0,61305.0,3.16267301]
[1723365314528,0.002832,61306.0,61305.0,3.23087301]
[1723365315165,0.002832,61306.0,61305.0,3.05052674]
[1723365315302,0.002832,61306.0,61305.0,3.02052674]
[1723365315860,0.002832,61306.0,61305.0,3.22252674]
[1723365315989,0.002832,61306.0,61305.0,3.23087301]
[1723365316367,0.002832,61306.0,61305.0,3.05052674]
[1723365317340,0.002832,61306.0,61305.0,2.67807108]
[1723365317545,0.002832,61306.0,61305.0,3.05052674]
[1723365317982,0.002832,61306.0,61305.0,3.05052676]
[1723365318433,0.002832,61306.0,61305.0,3.02052676]
[1723365318634,0.002832,61306.0,61305.0,3.05052676]
[1723365318807,0.002832,61306.0,61305.0,3.04052676]
[1723365319213,0.002832,61306.0,61305.0,3.18700404]
[1723365319439,0.002832,61306.0,61305.0,3.16700404]
[1723365320006,0.002832,61306.0,61305.0,3.18700404]
[1723365320206,0.002832,61306.0,61305.0,3.16700404]
[1723365321192,0.002832,61306.0,61305.0,2.74634836]
[1723365321472,0.002832,61306.0,61305.0,3.17700402]
[1723365322653,0.002832,61306.0,61305.0,3.19700402]
[1723365323417,0.002832,61306.0,61305.0,3.05052674]
[1723365324474,0.002832,61306.0,61305.0,3.03052674]
[1723365324966,0.002832,61306.0,61305.0,3.03705992]
[1723365325179,0.002832,61306.0,61305.0,3.02705992]
[1723365325359,0.002832,61306.0,61305.0,3.02379823]
[1723365326188,0.002832,61306.0,61305.0,2.96169823]
[1723365328022,0.002832,61306.0,61305.0,2.78289823]
[1723365328133,0.002832,61306.0,61305.0,2.82289823]
[1723365328341,0.002832,61306.0,61305.0,2.82290086]
[1723365328860,0.002832,61306.0,61305.0,2.79290247]
[1723365329067,0.002832,61306.0,61305.0,2.73290247]
[1723365329312,0.002832,61306.0,61305.0,2.99302496]
[1723365329490,0.002832,61306.0,61305.0,3.00302496]
[1723365329701,0.002832,61306.0,61305.0,2.97302496]
[1723365330264,0.002832,61306.0,61305.0,2.99302427]
[1723365330538,0.002832,61306.0,61305.0,2.97302427]
[1723365330757,0.002832,61306.0,61305.0,3.03302427]
[1723365331237,0.002832,61306.0,61305.0,3.10122427]
[1723365331580,0.002832,61306.0,61305.0,3.09122427]
[1723365331786,0.002832,61306.0,61305.0,2.92189343]
[1723365331986,0.002832,61306.0,61305.0,3.09119348]
[1723365332208,0.002832,61306.0,61305.0,3.10119348]
[1723365335621,0.001832,61306.0,61305.0,3.08719348]
[1723365335951,0.001832,61306.0,61305.0,3.08919348]
[1723365336100,0.002832,61306.0,61305.0,3.09719348]
[1723365336313,0.001832,61306.0,61305.0,3.08719348]
[1723365336723,0.002832,61306.0,61305.0,3.10019348]
[1723365337279,0.001832,61306.0,61305.0,3.09219348]
[1723365337767,0.000832,61306.0,61305.0,3.07919348]
[1723365337926,0.001832,61306.0,61305.0,2.53364239]
[1723365338135,0.001832,61306.0,61305.0,3.08617369]
[1723365338324,0.001832,61306.0,61305.0,3.18123054]
[1723365338519,0.000832,61306.0,61305.0,3.18123054]
[1723365338887,0.001832,61306.0,61305.0,3.18723054]
[1723365339090,0.002832,61306.0,61305.0,2.64769924]
[1723365339228,0.002832,61306.0,61305.0,3.19994606]
[1723365339634,0.002832,61306.0,61305.0,3.34632103]
[1723365341637,0.002832,61306.0,61305.0,3.34632906]
[1723365341837,0.002832,61306.0,61305.0,3.33632906]
[1723365341955,0.002832,61306.0,61305.0,3.41842906]
[1723365342145,0.002832,61306.0,61305.0,3.27203819]
[1723365342353,0.002832,61306.0,61305.0,3.69597519]
[1723365342563,0.002832,61306.0,61305.0,3.16873624]
[1723365342768,0.002832,61306.0,61305.0,3.39330441]
[1723365344292,0.002832,61306.0,61305.0,3.42330441]
[1723365344443,0.002832,61306.0,61305.0,3.22050441]
[1723365346362,0.002832,61306.0,61305.0,3.2202038]
[1723365347371,0.002832,61306.0,61305.0,3.43666324]
[1723365348116,0.002832,61306.0,61305.0,3.43660144]
[1723365348298,0.002832,61306.0,61305.0,3.220142]
[1723365349905,0.002832,61306.0,61305.0,3.22014147]
[1723365350118,0.002832,61306.0,61305.0,3.23014147]
[1723365350324,0.084432,61306.0,61305.0,3.23014147]
[1723365351800,0.084432,61306.0,61305.0,3.22014207]
[1723365352589,0.145532,61306.0,61305.0,3.23014207]
[1723365352979,0.145532,61306.0,61305.0,2.99194207]
[1723365353162,0.145532,61306.0,61305.0,3.03221339]
[1723365353340,0.145532,61306.0,61305.0,2.93015654]
[1723365353554,0.145532,61306.0,61305.0,2.11979272]
[1723365353750,0.145532,61306.0,61305.0,1.71033897]
[1723365353994,0.145532,61306.0,61305.0,1.61033897]
[1723365354170,0.145532,61306.0,61305.0,1.62033897]
[1723365354374,0.145532,61306.0,61305.0,1.69033897]
[1723365354587,0.144532,61306.0,61305.0,1.7822178]
[1723365354984,0.144532,61306.0,61305.0,1.0822178]
[1723365355226,0.144532,61306.0,61305.0,1.67433897]
[1723365355426,0.143532,61306.0,61305.0,1.7102616]
[1723365355580,0.143532,61306.0,61305.0,1.66133897]
[1723365355782,0.153532,61306.0,61305.0,1.66233897]
[1723365356016,0.154532,61306.0,61305.0,1.66233897]
[1723365356402,0.144532,61306.0,61305.0,1.71024436]
[1723365356612,0.146532,61306.0,61305.0,1.71024436]
[1723365357031,0.146532,61306.0,61305.0,1.57479718]
[1723365357238,0.146532,61306.0,61305.0,1.66136718]
[1723365357758,0.145532,61306.0,61305.0,1.66136718]
[1723365358131,0.146532,61306.0,61305.0,1.66136718]
[1723365358337,0.145532,61306.0,61305.0,1.66136718]
[1723365358753,0.144532,61306.0,61305.0,1.98760418]
[1723365359131,0.146532,61306.0,61305.0,1.98760418]
[1723365359453,0.144532,61306.0,61305.0,1.98760418]
[1723365360004,0.146532,61306.0,61305.0,1.98760418]
[1723365360441,0.146532,61306.0,61305.0,1.97760418]
[1723365360655,0.146532,61306.0,61305.0,1.98760417]
[1723365361276,0.146532,61306.0,61305.0,1.98760418]
[1723365362539,0.146532,61306.0,61305.0,1.97760418]
[1723365363484,0.146532,61306.0,61305.0,1.97760417]
[1723365363858,0.146532,61306.0,61305.0,1.84212879]
[1723365364623,0.146532,61306.0,61305.0,1.85212879]
[1723365366129,0.146532,61306.0,61305.0,1.84212879]
[1723365366335,0.146532,61306.0,61305.0,1.85212879]
[1723365367112,0.146532,61306.0,61305.0,1.84212879]
[1723365368140,0.146532,61306.0,61305.0,1.85212879]
[1723365368822,0.146532,61306.0,61305.0,1.98760418]
[1723365369423,0.083432,61306.0,61305.0,1.98760418]
[1723365369621,0.001832,61306.0,61305.0,1.98760418]
[1723365369845,0.001832,61306.0,61305.0,2.5581463]
[1723365370177,0.001832,61306.0,61305.0,2.6314331]
[1723365370382,0.001832,61306.0,61305.0,2.6214331]
[1723365370586,0.000832,61306.0,61305.0,2.5581463]
[1723365370785,0.000832,61306.0,61305.0,2.5481463]
[1723365370990,0.000832,61306.0,61305.0,2.5491463]
[1723365371214,0.000832,61306.0,61305.0,2.41368071]
[1723365371437,0.000832,61306.0,61305.0,2.5491426]
[1723365371855,0.000832,61306.0,61305.0,2.5511426]
[1723365372058,0.001832,61306.0,61305.0,2.5571426]
[1723365372261,0.001832,61306.0,61305.0,2.5541426]
[1723365372725,0.001832,61306.0,61305.0,2.6314294]
[1723365372942,0.001832,61306.0,61305.0,2.63138677]
[1723365373938,0.001832,61306.0,61305.0,2.64148023]
[1723365374104,0.001832,61306.0,61305.0,2.56098023]
[1723365374285,0.001832,61306.0,61305.0,2.48773606]
[1723365376060,0.001832,61306.0,61305.0,2.53656732]
[1723365377555,0.001832,61306.0,61305.0,2.36265894]
[1723365377761,0.078332,61306.0,61305.0,2.31382768]
[1723365377966,0.078332,61306.0,61305.0,1.62382768]
[1723365378169,0.078332,61306.0,61305.0,2.30383191]
[1723365378592,0.078332,61306.0,61305.0,2.31383191]
[1723365380073,0.078332,61306.0,61305.0,2.32383191]
[1723365380658,0.001832,61306.0,61305.0,2.32383191]
[1723365380849,0.001832,61306.0,61305.0,2.37266317]
[1723365381472,0.001832,61306.0,61305.0,2.04642617]
[1723365381685,0.001832,61306.0,61305.0,1.91096005]
[1723365381913,0.001832,61306.0,61305.0,2.04642617]
[1723365382428,0.001832,61306.0,61305.0,2.04643475]
[1723365382831,0.001832,61306.0,61305.0,2.02759491]
[1723365383243,0.001832,61306.0,61305.0,2.07643475]
[1723365384488,0.001832,61306.0,61305.0,2.12643475]
[1723365384721,0.001832,61306.0,61305.0,1.35643475]
[1723365384994,0.001832,61306.0,61305.0,2.00643475]
[1723365385399,0.001832,61306.0,61305.0,2.07643475]
[1723365388693,0.001832,61306.0,61305.0,2.02759491]
[1723365390533,0.001832,61306.0,61305.0,2.10085467]
[1723365391386,0.001832,61306.0,61305.0,2.15085467]
[1723365392735,0.001832,61306.0,61305.0,2.15085531]
[1723365395435,0.001832,61306.0,61305.0,2.07759555]
[1723365396314,0.001832,61306.0,61305.0,2.17527523]
[1723365396855,0.147932,61306.0,61305.0,2.17527523]
[1723365397057,0.147932,61306.0,61305.0,2.04527523]
[1723365397348,0.147932,61306.0,61305.0,2.06527523]
[1723365397879,0.001832,61306.0,61305.0,2.06527523]
[1723365398080,0.001832,61306.0,61305.0,1.92980847]
[1723365398310,0.001832,61306.0,61305.0,2.08969583]
[1723365400764,0.001832,61306.0,61305.0,2.07969583]
[1723365400936,0.001832,61306.0,61305.0,2.08969583]
[1723365401136,0.001832,61306.0,61305.0,2.08996339]
[1723365403443,0.001832,61306.0,61305.0,2.07996339]
[1723365403646,0.001832,61306.0,61305.0,1.95759623]
[1723365403995,0.001832,61306.0,61305.0,1.96759623]
[1723365404782,0.001832,61306.0,61305.0,1.95759623]
[1723365405855,0.001832,61306.0,61305.0,1.96759623]
[1723365406056,0.001832,61306.0,61305.0,1.95759623]
[1723365406264,0.001832,61306.0,61305.0,1.96759623]
[1723365406660,0.001832,61306.0,61305.0,1.95759623]
[1723365407515,0.001832,61306.0,61305.0,1.9575953]
[1723365410998,0.001832,61306.0,61305.0,1.9475953]
[1723365410999,0.000832,61306.0,61305.0,1.9475953]
[1723365411403,0.000832,61306.0,61305.0,1.9495953]
[1723365411604,0.000832,61306.0,61305.0,1.9525953]
[1723365411806,0.000832,61306.0,61305.0,1.9495953]
[1723365411942,0.000832,61306.0,61305.0,1.9475953]
[1723365412144,0.000832,61306.0,61305.0,1.9525953]
[1723365414585,0.000832,61306.0,61305.0,1.9525962]
[1723365415003,0.000832,61306.0,61305.0,1.82712879]
[1723365415281,0.000832,61306.0,61305.0,1.95259621]
[1723365415898,0.000832,61306.0,61305.0,1.96259621]
[1723365418059,0.000832,61306.0,61305.0,1.95259621]
[1723365418380,0.000832,61306.0,61305.0,1.96259621]
[1723365418553,0.000832,61306.0,61305.0,1.95259621]
[1723365420391,0.000832,61306.0,61305.0,2.03359621]
[1723365420617,0.000832,61306.0,61305.0,2.66344813]
[1723365420829,0.000832,61306.0,61305.0,3.19224625]
[1723365421036,0.000832,61306.0,61305.0,3.29430655]
[1723365421239,0.000832,61306.0,61305.0,3.27235235]
[1723365421443,0.000832,61306.0,61305.0,3.77768574]
[1723365421649,0.000832,61306.0,61305.0,3.66630895]
[1723365421829,0.000832,61306.0,61305.0,3.34007195]
[1723365422579,0.000832,61306.0,61305.0,3.33807195]
[1723365423012,0.000832,61306.0,61305.0,3.24787195]
[1723365423226,0.000832,61306.0,61305.0,3.30607195]
[1723365423435,0.000832,61306.0,61305.0,3.31607195]
[1723365423637,0.001832,61306.0,61305.0,3.23501165]
[1723365423811,0.001832,61306.0,61305.0,3.22501165]
[1723365424210,0.002832,61306.0,61305.0,3.23301165]
[1723365424413,0.002832,61306.0,61305.0,3.25501165]
[1723365424642,0.002832,61306.0,61305.0,3.47160296]
[1723365424860,0.002832,61306.0,61305.0,3.47304007]
[1723365425264,0.002832,61306.0,61305.0,3.30388404]
[1723365425441,0.002832,61306.0,61305.0,3.47318168]
[1723365426550,0.002832,61306.0,61305.0,3.25659036]
[1723365427163,0.002832,61306.0,61305.0,3.22459036]
[1723365428074,0.002832,61306.0,61305.0,3.25659036]
[1723365428490,0.002832,61306.0,61305.0,3.22459036]
[1723365428697,0.002832,61306.0,61305.0,2.66798071]
[1723365428900,0.002832,61306.0,61305.0,3.22470974]
[1723365432614,0.002832,61306.0,61305.0,2.98769306]
[1723365432820,0.002832,61306.0,61305.0,3.22470974]
[1723365433631,0.002832,61306.0,61305.0,3.25670974]
[1723365437227,0.002832,61306.0,61305.0,2.76769976]
[1723365437430,0.002832,61306.0,61305.0,3.25672881]
[1723365438410,0.002832,61306.0,61305.0,3.25673621]
[1723365438968,0.002832,61306.0,61305.0,3.26326921]
[1723365440396,0.002832,61306.0,61305.0,3.02625582]
[1723365440572,0.002832,61306.0,61305.0,3.2632725]
[1723365441470,0.002832,61306.0,61305.0,3.2412725]
[1723365441651,0.002832,61306.0,61305.0,3.2612725]
[1723365444581,0.002832,61306.0,61305.0,3.26116944]
[1723365444970,0.002832,61306.0,61305.0,3.23116944]
[1723365448597,1e-06,61307.0,61306.0,1.25389769]
[1723365448800,1e-06,61307.0,61306.0,3.24207206]
[1723365449005,1e-06,61307.0,61306.0,3.41181611]
[1723365449204,1e-06,61307.0,61306.0,3.73804811]
[1723365449323,1e-06,61307.0,61306.0,3.77004811]
[1723365449536,1e-06,61307.0,61306.0,3.99195978]
[1723365449917,0.001001,61307.0,61306.0,4.00495978]
[1723365450091,0.002001,61307.0,61306.0,4.01195978]
[1723365450322,0.002001,61307.0,61306.0,4.01151061]
[1723365451261,0.002001,61307.0,61306.0,4.02131067]
[1723365452508,0.002001,61307.0,61306.0,3.10952319]
[1723365452678,0.002001,61307.0,61306.0,4.02126935]
[1723365453711,0.002001,61307.0,61306.0,4.05326935]
[1723365454228,0.002001,61307.0,61306.0,4.04326935]
[1723365454454,0.002001,61307.0,61306.0,4.05326935]
[1723365454746,0.002001,61307.0,61306.0,4.02126935]
[1723365455131,0.002001,61307.0,61306.0,4.02218455]
[1723365456686,0.002001,61307.0,61306.0,3.9544745]
[1723365456855,0.002001,61307.0,61306.0,4.02218455]
[1723365458313,0.002001,61307.0,61306.0,3.59899671]
[1723365458888,0.002001,61307.0,61306.0,3.27971352]
[1723365459480,0.002001,61307.0,61306.0,3.11043839]
[1723365461075,0.002001,61307.0,61306.0,3.44898869]
[1723365462278,0.002001,61307.0,61306.0,3.11043839]